Workbook

Sheet 入力
C29: ■試算する被保険者の情報
C31: 被保険者となった月 | I31: 年金収入（年額） | Q31: 給与収入（年額） | Y31: その他の所得（年額）
C32: (選択してください) | P32: 円 | X32: 円 | AF32: 円
C34: ■同じ世帯の他の被保険者情報１
C36: 同じ世帯に他の被保険者がいる 場合はチェックし、右記を入力 | I36: 年金収入（年額） | Q36: 給与収入（年額） | Y36: その他の所得（年額）
P37: 円 | X37: 円 | AF37: 円
C39: ■同じ世帯の他の被保険者情報２
C41: 同じ世帯に他の被保険者がいる 場合はチェックし、右記を入力 | I41: 年金収入（年額） | Q41: 給与収入（年額） | Y41: その他の所得（年額）
P42: 円 | X42: 円 | AF42: 円
C44: ■世帯主情報
C46: 世帯主が被保険者以外の場合はチェックし、右記を入力 | H46: (令和2年1月1日時点) | L46: 年金収入（年額） | S46: 給与収入（年額） | Z46: その他の所得（年額）
H47: (選択してください) | R47: 円 | Y47: 円 | AF47: 円
E49: 保険料試算 | S49: 入力情報のクリア
D50: 入力等が終わりましたら、ここをクリックしてください。 | V50: ="(試算日:"&TEXT(TODAY(),"ggge年m月d日"&")") -> (試算日:令和3年3月19日)
D51: あなたの令和２年度の保険料額の試算結果は | Q51: =計算!N3 -> 資格取得月入力エラー | W51: 円 | X51: ( | Y51: =IF(I55="資格取得月入力エラー","***",I55) -> *** | AA51: ヶ月分 | AC51: ) | AD51: です。
E53: 軽減割合 | I53: =計算!D17 -> 0.7 | J53: =IF(I53="世帯主年齢選択エラー","世帯主年齢選択エラー",IF(I53="",0,VLOOKUP(I53,設定!$A$32:$B$37,2,0))) -> 7 | Q53: 割 | R53: 世帯の所得によって均等割額の軽減割合が判定 されます(7.75割,7割,5割,2割または軽減なし)。
D55: 賦課月数➀ | I55: =設定!C2 -> 資格取得月入力エラー | Q55: 月 | R55: 保険料試算の加入月数です（12月未満の場合は、月数に応じて、試算結果から減額されます）。
D56: 均等割額② | I56: =IF(計算!J3="世帯主年齢選択エラー","世帯主年齢選択エラー",計算!F3-計算!J3) -> 12510 | Q56: 円 | R56: 令和２年度の均等割額は41,700円です。 ※軽減に該当する場合は軽減後の金額です。
D58: 所得割額③ | I58: =計算!E3 -> 0 | Q58: 円 | R58: 被保険者の所得に応じて負担いただく額です。
D59: 所得割率④ | I59: 7.96 | Q59: % | R59: 所得割率は埼玉県内で均一です。
D60: 備考 | I60: ※②と③は、それぞれ10円未満の端数を切捨てます。 ※保険料額は、②と③を合計して、100円未満の端数を切捨てます。 ※令和2年度の保険料額の限度額は、年額64万円です。

Sheet 設定 (hidden)
B1: 資格取得月 | C1: 月数 | D1: 年金所得 | E1: 給与所得 | F1: その他の所得
A2: 被保険者 | B2: =IF(OR(入力!C32="(選択してください)",ISBLANK(入力!C32)),"資格取得月入力エラー",入力!C32) -> 資格取得月入力エラー | C2: =IF(B2="資格取得月入力エラー","資格取得月入力エラー",VLOOKUP(B2,資格取得月!$A$2:$B$13,2,0)) -> 資格取得月入力エラー | D2: =VLOOKUP(入力!I32,年金所得!$B$2:$C$5,2) -> 0 | E2: =VLOOKUP(入力!Q32,給与所得!$B$3:$C$13,2) -> 0 | F2: =入力!Y32 -> 0
B4: チェックボックス | C4: 年金所得 | D4: 給与所得 | E4: その他の所得
A5: 家族１ | B5: =IF(入力!C37="v",1,0) -> 0 | C5: =VLOOKUP(IF(入力!I37="v",1,0),年金所得!$B$8:$C$11,2) -> 0 | D5: =VLOOKUP(入力!Q37,給与所得!$B$17:$C$27,2) -> 0 | E5: =入力!Y37 -> 0
A6: 家族２ | B6: =IF(入力!C42="v",1,0) -> 0 | C6: =VLOOKUP(IF(入力!I42="v",1,0),年金所得!$B$14:$C$17,2) -> 0 | D6: =VLOOKUP(入力!Q42,給与所得!$B$31:$C$41,2) -> 0 | E6: =入力!Y42 -> 0
B8: 年齢 | C8: 年金所得 | D8: 給与所得 | E8: その他の所得
A9: 世帯主 | B9: =IF(ISBLANK(H47),0,入力!H47) -> 0 | C9: =年金所得!I20 -> 0 | D9: =VLOOKUP(入力!S47,給与所得!$B$45:$C$55,2) -> 0 | E9: =入力!Z47 -> 0
A11: 年度 | B11: 賦課期日 | C11: 所得割率 | D11: 均等割額 | E11: 賦課限度額
A12: R2 | B12: 2020-04-01 | C12: 0.0796 | D12: 41700 | E12: 640000
A13: R3 | B13: 2021-04-01 | C13: 0.0796 | D13: 41700 | E13: 640000
A14: R4 | B14: 2022-04-01 | C14: ？% | D14: ？ | E14: ？
A15: R5 | B15: 2022-04-01 | C15: ？% | D15: ？ | E15: ？
B17: 被保険者
A18: 令和2年4月以前 | B18: 12
A19: 令和2年5月 | B19: 11
A20: 令和2年6月 | B20: 10
A21: 令和2年7月 | B21: 9
A22: 令和2年8月 | B22: 8
A23: 令和2年9月 | B23: 7
A24: 令和2年10月 | B24: 6
A25: 令和2年11月 | B25: 5
A26: 令和2年12月 | B26: 4
A27: 令和3年1月 | B27: 3
A28: 令和3年2月 | B28: 2
A29: 令和3年3月 | B29: 1
B31: 軽減割合
A32: 0.7 | B32: 7
A33: 0.775 | B33: 7.75
A34: 0.5 | B34: 5
A35: 0.2 | B35: 2
A36: 0 | B36: ―

Sheet 年金所得 (hidden)
A1: 被保険者 | B1: ６５歳以上 | D1: ６５歳未満 | H1: 年金収入 | I1: 年金所得 | J1: 軽減判定所得
B2: 0 | C2: =IF(入力!$I32<=1200000,0,入力!$I32-1200000) -> 0 | H2: =入力!I32 -> 0 | I2: =VLOOKUP(H2,B2:C5,2) -> 0 | J2: =IF(I2<=149999,0,I2-150000) -> 0
B3: 3300000 | C3: =ROUNDDOWN(入力!$I32*0.75-375000,0) -> -375000
B4: 4100000 | C4: =ROUNDDOWN(入力!$I32*0.85-785000,0) -> -785000
B5: 7700000 | C5: =ROUNDDOWN(入力!$I32*0.95-1555000,0) -> -1555000
A7: 家族１ | B7: ６５歳以上 | D7: ６５歳未満 | H7: 年金収入 | I7: 年金所得 | J7: 軽減判定所得
B8: 0 | C8: =IF(入力!$I37<=1200000,0,入力!$I37-1200000) -> 0 | H8: =入力!I37 -> 0 | I8: =VLOOKUP(H8,B8:C11,2) -> 0 | J8: =IF(I8<=149999,0,I8-150000) -> 0
B9: 3300000 | C9: =ROUNDDOWN(入力!$I37*0.75-375000,0) -> -375000
B10: 4100000 | C10: =ROUNDDOWN(入力!$I37*0.85-785000,0) -> -785000
B11: 7700000 | C11: =ROUNDDOWN(入力!$I37*0.95-1555000,0) -> -1555000
A13: 家族２ | B13: ６５歳以上 | D13: ６５歳未満 | H13: 年金収入 | I13: 年金所得 | J13: 軽減判定所得
B14: 0 | C14: =IF(入力!$I42<=1200000,0,入力!$I42-1200000) -> 0 | H14: =入力!I42 -> 0 | I14: =VLOOKUP(H14,B14:C17,2) -> 0 | J14: =IF(I14<=149999,0,I14-150000) -> 0
B15: 3300000 | C15: =ROUNDDOWN(入力!$I42*0.75-375000,0) -> -375000
B16: 4100000 | C16: =ROUNDDOWN(入力!$I42*0.85-785000,0) -> -785000
B17: 7700000 | C17: =ROUNDDOWN(入力!$I42*0.95-1555000,0) -> -1555000
A19: 世帯主 | B19: ６５歳以上 | D19: ６５歳未満 | G19: 年齢 | H19: 年金収入 | I19: 年金所得 | J19: 軽減判定所得
B20: 0 | C20: =IF(入力!$L47<=1200000,0,入力!$L47-1200000) -> 0 | D20: 0 | E20: =IF(入力!$L47<=700000,0,入力!$L47-700000) -> 0 | G20: =入力!H47 -> (選択してください) | H20: =入力!L47 -> 0 | I20: =IF(入力!C47="",0,IF(入力!H47="65歳以上",VLOOKUP(H20,B20:C23,2),IF(入力!H47="65歳未満",VLOOKUP(H20,D20:E23,2),"世帯主年齢選択エラー"))) -> 0 | J20: =IF(I20="世帯主年齢選択エラー","世帯主年齢選択エラー",IF(G20="65歳未満",I20,IF(I20<=149999,0,I20-150000))) -> 0
B21: 3300000 | C21: =ROUNDDOWN(入力!$L47*0.75-375000,0) -> -375000 | D21: 1300000 | E21: =ROUNDDOWN(入力!$L47*0.75-375000,0) -> -375000
B22: 4100000 | C22: =ROUNDDOWN(入力!$L47*0.85-785000,0) -> -785000 | D22: 4100000 | E22: =ROUNDDOWN(入力!$L47*0.85-785000,0) -> -785000
B23: 7700000 | C23: =ROUNDDOWN(入力!$L47*0.95-1555000,0) -> -1555000 | D23: 7700000 | E23: =ROUNDDOWN(入力!$L47*0.95-1555000,0) -> -1555000

Sheet 給与所得 (hidden)
A1: 被保険者 | B1: 2019年分
B2: 給与収入 | C2: 給与所得
B3: 0 | C3: 0
B4: 651000 | C4: =入力!Q32-650000 -> -650000
B5: 1619000 | C5: 969000
B6: 1620000 | C6: 970000
B7: 1622000 | C7: 972000
B8: 1624000 | C8: 974000
B9: 1628000 | C9: =ROUNDDOWN(入力!Q32/4000,0)*4000*0.6 -> 0
B10: 1800000 | C10: =ROUNDDOWN(入力!Q32/4000,0)*4000*0.7-180000 -> -180000
B11: 3600000 | C11: =ROUNDDOWN(入力!Q32/4000,0)*4000*0.8-540000 -> -540000
B12: 6600000 | C12: =ROUNDDOWN(入力!Q32/4000,0)*4000*0.9-1200000 -> -1200000
B13: 10000000 | C13: =入力!Q32-2200000 -> -2200000
A15: 家族１ | B15: 2019年分
B16: 給与収入 | C16: 給与所得
B17: 0 | C17: 0
B18: 651000 | C18: =入力!Q37-650000 -> -650000
B19: 1619000 | C19: 969000
B20: 1620000 | C20: 970000
B21: 1622000 | C21: 972000
B22: 1624000 | C22: 974000
B23: 1628000 | C23: =ROUNDDOWN(入力!Q37/4000,0)*4000*0.6 -> 0
B24: 1800000 | C24: =ROUNDDOWN(入力!Q37/4000,0)*4000*0.7-180000 -> -180000
B25: 3600000 | C25: =ROUNDDOWN(入力!Q37/4000,0)*4000*0.8-540000 -> -540000
B26: 6600000 | C26: =ROUNDDOWN(入力!Q37/4000,0)*4000*0.9-1200000 -> -1200000
B27: 10000000 | C27: =入力!Q37-2200000 -> -2200000
A29: 家族２ | B29: 2019年分
B30: 給与収入 | C30: 給与所得
B31: 0 | C31: 0
B32: 651000 | C32: =入力!Q42-650000 -> -650000
B33: 1619000 | C33: 969000
B34: 1620000 | C34: 970000
B35: 1622000 | C35: 972000
B36: 1624000 | C36: 974000
B37: 1628000 | C37: =ROUNDDOWN(入力!Q42/4000,0)*4000*0.6 -> 0
B38: 1800000 | C38: =ROUNDDOWN(入力!Q42/4000,0)*4000*0.7-180000 -> -180000
B39: 3600000 | C39: =ROUNDDOWN(入力!Q42/4000,0)*4000*0.8-540000 -> -540000
B40: 6600000 | C40: =ROUNDDOWN(入力!Q42/4000,0)*4000*0.9-1200000 -> -1200000
B41: 10000000 | C41: =入力!Q42-2200000 -> -2200000
A43: 世帯主 | B43: 2019年分
B44: 給与収入 | C44: 給与所得
B45: 0 | C45: 0
B46: 651000 | C46: =入力!S47-650000 -> -650000
B47: 1619000 | C47: 969000
B48: 1620000 | C48: 970000
B49: 1622000 | C49: 972000
B50: 1624000 | C50: 974000
B51: 1628000 | C51: =ROUNDDOWN(入力!S47/4000,0)*4000*0.6 -> 0
B52: 1800000 | C52: =ROUNDDOWN(入力!S47/4000,0)*4000*0.7-180000 -> -180000
B53: 3600000 | C53: =ROUNDDOWN(入力!S47/4000,0)*4000*0.8-540000 -> -540000
B54: 6600000 | C54: =ROUNDDOWN(入力!S47/4000,0)*4000*0.9-1200000 -> -1200000
B55: 10000000 | C55: =入力!S47-2200000 -> -2200000

Sheet 資格取得月 (hidden)
A1: 資格取得月 | B1: 月数
A2: 令和2年4月以前 | B2: 12
A3: 令和2年5月 | B3: 11
A4: 令和2年6月 | B4: 10
A5: 令和2年7月 | B5: 9
A6: 令和2年8月 | B6: 8
A7: 令和2年9月 | B7: 7
A8: 令和2年10月 | B8: 6
A9: 令和2年11月 | B9: 5
A10: 令和2年12月 | B10: 4
A11: 令和3年1月 | B11: 3
A12: 令和3年2月 | B12: 2
A13: 令和3年3月 | B13: 1

Sheet 計算 (hidden)
A1: 【保険料算定】
B2: 所得合計 | C2: 賦課のもとと なる所得金額 | D2: 所得割率 | E2: 所得割額 | F2: 均等割額 | G2: 算出 保険料額 | H2: 賦課限度額 | I2: 限度超過額 | J2: 均等割 軽減額 | K2: 年 間 保険料額 | L2: 月数 | M2: 月割減額 | N2: 決 定 保険料額
A3: 被保険者 | B3: =設定!D2+設定!E2+設定!F2 -> 0 | C3: =IF(B3<=330000,0,B3-330000) -> 0 | D3: 0.0796 | E3: =ROUNDDOWN(C3*D3,-1) -> 0 | F3: 41700 | G3: =E3+F3 -> 41700 | H3: 640000 | I3: =IF(G3>H3,G3-H3,0) -> 0 | J3: =IF(D17="世帯主年齢選択エラー","世帯主年齢選択エラー",ROUNDUP(F3*$D$17,-1)) -> 29190 | K3: =IF(J3="世帯主年齢選択エラー","世帯主年齢選択エラー",G3-I3-J3) -> 12510 | L3: =設定!C2 -> 資格取得月入力エラー | M3: =IF(OR(L3="資格取得月入力エラー",ISBLANK(L3)),"資格取得月入力エラー",IF(K3="世帯主年齢選択エラー","世帯主年齢選択エラー",ROUNDUP(K3*(12-L3)/12,0))) -> 資格取得月入力エラー | N3: =IF(M3="資格取得月入力エラー","資格取得月入力エラー",IF(K3="世帯主年齢選択エラー","世帯主年齢選択エラー",ROUNDDOWN(K3-M3,-2))) -> 資格取得月入力エラー
A5: 【軽減判定所得の計算】
B6: 軽減判定所得
A7: 被保険者 | B7: ='7割軽減判定'!I2 -> 0
A8: 家族１ | B8: ='7割軽減判定'!I3 -> 0
A9: 家族２ | B9: ='7割軽減判定'!I4 -> 0
A10: 世帯主 | B10: =IF('7割軽減判定'!I5="世帯主年齢選択エラー","世帯主年齢選択エラー",'7割軽減判定'!I5) -> 0
A11: 合計 | B11: =IF(B10="世帯主年齢選択エラー","世帯主年齢選択エラー",SUM(B7:B10)) -> 0
A13: 世帯の 被保険者数
A14: =COUNTA(設定!B2)+SUM(設定!B5:B6) -> 1
B16: 基準額 | C16: 軽減の適用 | D16: 軽減割合
A17: 7割軽減 | B17: 330000 | C17: ='7割軽減判定'!J9 -> 該当 | D17: =IF(B11="世帯主年齢選択エラー","世帯主年齢選択エラー",IF(AND(C17="該当",C18="該当"),0.7,IF(AND(C17="非該当",C18="該当"),0.775,IF(C19="該当",0.5,IF(C20="該当",0.2,0))))) -> 0.7
A18: 7.75割軽減 | B18: 330000 | C18: =IF(B11="世帯主年齢選択エラー","世帯主年齢選択エラー",IF(B11<=330000,"該当","非該当")) -> 該当
A19: 5割軽減 | B19: =330000+(285000*A14) -> 615000 | C19: =IF(B11="世帯主年齢選択エラー","世帯主年齢選択エラー",IF(C18="該当","",IF(B11<=B19,"該当","非該当"))) -> 
A20: 2割軽減 | B20: =330000+(520000*A14) -> 850000 | C20: =IF(B11="世帯主年齢選択エラー","世帯主年齢選択エラー",IF(OR(C18="該当",C19="該当"),"",IF(B11<=B20,"該当","非該当"))) -> 

Sheet 7割軽減判定 (hidden)
B1: 年金収入 | C1: 給与収入 | D1: その他の所得 | E1: 給与所得 | F1: 年金所得 | G1: (年金軽減 判定所得) | H1: 軽減判定所得 その他の所得+給与所得+年金所得(年金軽減判定所得) | J1: ７割軽減 世帯判定
A2: 被保険者 | B2: =入力!I32 -> 0 | C2: =入力!Q32 -> 0 | D2: =入力!Y32 -> 0 | E2: =設定!E2 -> 0 | F2: =年金所得!I2 -> 0 | G2: =年金所得!J2 -> 0 | H2: =D2+E2+G2 -> 0 | I2: =IF(D2+E2+G2<0,"0",D2+E2+G2) -> 0 | J2: =IF(SUM(D2:F2)>0,"非該当",IF(B2-800000+D2+E2<=0,"該当","非該当")) -> 該当
A3: 家族１ | B3: =入力!I37 -> 0 | C3: =入力!Q37 -> 0 | D3: =入力!Y37 -> 0 | E3: =設定!D5 -> 0 | F3: =年金所得!I8 -> 0 | G3: =年金所得!J8 -> 0 | H3: =D3+E3+G3 -> 0 | I3: =IF(D3+E3+G3<0,"0",D3+E3+G3) -> 0 | J3: =IF(SUM(D3:F3)>0,"非該当",IF(B3-800000+D3+E3<=0,"該当","非該当")) -> 該当
A4: 家族２ | B4: =入力!I42 -> 0 | C4: =入力!Q42 -> 0 | D4: =入力!Y42 -> 0 | E4: =設定!D6 -> 0 | F4: =年金所得!I14 -> 0 | G4: =年金所得!J14 -> 0 | H4: =D4+E4+G4 -> 0 | I4: =IF(D4+E4+G4<0,"0",D4+E4+G4) -> 0 | J4: 該当
A5: 世帯主 | B5: =入力!L47 -> 0 | C5: =入力!S47 -> 0 | D5: =入力!Z47 -> 0 | E5: =設定!D9 -> 0 | F5: =年金所得!I20 -> 0 | G5: =年金所得!J20 -> 0 | H5: =IF(G5="世帯主年齢選択エラー","世帯主年齢選択エラー",D5+E5+G5) -> 0 | I5: =IF(H5="世帯主年齢選択エラー","世帯主年齢選択エラー",IF(D5+E5+G5<0,"0",D5+E5+G5)) -> 0 | J5: ―
A6: 合計 | B6: ― | C6: ― | D6: ― | E6: ― | F6: ― | G6: ― | H6: =SUM(H2:H5) -> 0 | I6: =SUM(I2:I5) -> 0 | J6: ―
J8: ７割軽減 世帯判定
J9: =IF(I5="世帯主年齢選択エラー","世帯主年齢選択エラー",IF(AND(SUM(I2:I4)<=330000,J2="該当",J3="該当",J4="該当"),"該当","非該当")) -> 該当
